fUSD/lending_fUSD_20240427
["ID","MTS","AMOUNT","RATE_DAILY","PERIOD"]
[323715430,1714187438762,-500.0,0.00012678,2]
[323715431,1714187438773,-550.87,0.00012678,2]
[323715432,1714187438783,-1205.81,0.00012678,2]
[323715433,1714187438792,-500.0,0.00012678,2]
[323715434,1714187438803,-500.0,0.00012678,2]
[323715435,1714187438813,-500.0,0.00012678,2]
[323715436,1714187438823,-1400.25,0.00012678,2]
[323715437,1714187438835,-500.0,0.00012678,2]
[323715438,1714187438845,-500.0,0.00012678,2]
[323715439,1714187438855,-563.05,0.00012678,2]
[323715440,1714187438865,-500.0,0.00012678,2]
[323715441,1714187438876,-500.0,0.00012678,2]
[323715442,1714187438886,-1405.11,0.00012678,2]
[323715443,1714187438895,-500.0,0.00012678,2]
[323715444,1714187438907,-500.0,0.00012678,2]
[323715445,1714187438917,-500.0,0.00012678,2]
[323715446,1714187438926,-500.0,0.00012678,2]
[323715447,1714187438936,-500.0,0.00012678,2]
[323715448,1714187438946,-1132.31,0.00012678,2]
[323715449,1714187438956,-666.27,0.00012678,2]
[323715450,1714187438966,-2547.33,0.00012678,2]
[323715451,1714187438975,-1090.34,0.00012678,2]
[323715452,1714187438985,-1176.07,0.00012678,2]
[323715453,1714187438996,-840.26,0.00012678,2]
[323715454,1714187439005,-818.31,0.00012678,2]
[323715455,1714187439014,-500.0,0.00012678,2]
[323715456,1714187439024,-500.0,0.00012678,2]
[323715457,1714187439033,-500.0,0.00012678,2]
[323715458,1714187439042,-500.0,0.00012678,2]
[323715459,1714187439052,-500.0,0.00012678,2]
[323715460,1714187439061,-500.0,0.00012678,2]
[323715461,1714187439070,-500.0,0.00012678,2]
[323715462,1714187439080,-500.0,0.00012678,2]
[323715463,1714187439090,-4622.15,0.00012678,2]
[323715464,1714187439100,-500.0,0.00012678,2]
[323715465,1714187439110,-500.0,0.00012678,2]
[323715466,1714187439119,-500.0,0.00012678,2]
[323715467,1714187439128,-506.46,0.00012678,2]
[323715468,1714187439137,-512.24942124,0.00012678,2]
[323715469,1714187439146,-600.82,0.00012678,2]
[323715470,1714187439155,-555.02040297,0.00012678,2]
[323715471,1714187439165,-4637.59,0.00012678,2]
[323715472,1714187439174,-496.4578015,0.00012678,2]
[323715473,1714187439184,-3602.28,0.00012678,2]
[323715474,1714187439195,-500.0,0.00012678,2]
[323715475,1714187439206,-500.0,0.00012678,2]
[323715476,1714187439216,-445.91052231,0.00012679,2]
[323715477,1714187439226,-870.62994095,0.00012679,2]
[323715478,1714187439237,-500.0,0.00012679,2]
[323715479,1714187439249,-500.0,0.00012679,2]
[323715480,1714187439260,-177.23236136,0.00012679,2]
[323715481,1714187439271,-500.0,0.00012679,2]
[323715482,1714187439282,-500.0,0.00012679,2]
[323715483,1714187439293,-574.51970184,0.00012679,2]
[323715484,1714187439303,-502.62921034,0.00012679,2]
[323715485,1714187439314,-500.0,0.00012679,2]
[323715486,1714187439324,-500.0,0.00012679,2]
[323715487,1714187439334,-500.0,0.00012679,2]
[323715488,1714187439345,-506.77098277,0.00012679,2]
[323715489,1714187439356,-601.63973723,0.00012679,2]
[323715490,1714187439365,-500.0,0.00012679,2]
[323715491,1714187439375,-552.40618132,0.00012679,2]
[323715492,1714187439384,-500.0,0.00012679,2]
[323715493,1714187439393,-500.0,0.00012679,2]
[323715494,1714187439402,-504.37641297,0.00012679,2]
[323715495,1714187439411,-210.65968199,0.00012679,2]
[323715496,1714187439422,-500.0,0.00012679,2]
[323715497,1714187439432,-510.78416114,0.00012679,2]
[323715498,1714187439442,-500.0,0.00012679,2]
[323715499,1714187439451,-500.48176605,0.00012679,2]
[323715500,1714187439461,-296.75157899,0.00012679,2]
[323715501,1714187439471,-503.33194777,0.00012679,2]
[323715502,1714187439482,-500.0,0.00012679,2]
[323715503,1714187439492,-500.0,0.00012679,2]
[323715504,1714187439506,-500.0,0.00012679,2]
[323715505,1714187439517,-497.40707885,0.00012679,2]
[323715506,1714187439535,-2.59292115,0.00012679,2]
[323715507,1714187439544,-510.20472064,0.00012679,2]
[323715508,1714187439553,-500.0,0.00012679,2]
[323715509,1714187439563,-154.8623582,0.00012679,2]
[323715547,1714187440031,-425.0546233,0.00012671,2]
[323715549,1714187440044,-500.0,0.00012678,2]
[323715551,1714187440053,-500.0,0.00012678,2]
[323715553,1714187440063,-345.1376418,0.00012679,2]
[323715555,1714187440073,-338.57853943,0.00012679,2]
[323715557,1714187440082,-504.50584437,0.00012679,2]
[323715560,1714187440092,-500.0,0.00012679,2]
[323715562,1714187440102,-504.45390803,0.00012679,2]
[323715564,1714187440111,-503.35742587,0.00012679,2]
[323715566,1714187440122,-509.92450504,0.00012679,2]
[323715568,1714187440131,-503.06043146,0.00012679,2]
[323715570,1714187440140,-500.0,0.00012679,2]
[323715572,1714187440148,-500.0,0.00012679,2]
[323715574,1714187440158,-500.0,0.00012679,2]
[323715576,1714187440168,-508.14627577,0.00012679,2]
[323715578,1714187440177,-232.91135032,0.00012679,2]
[323715580,1714187440187,-601.66359189,0.00012679,2]
[323715582,1714187440196,-500.0,0.00012679,2]
[323715584,1714187440207,-503.76760202,0.00012679,2]
[323715586,1714187440217,-500.0,0.00012679,2]
[323715588,1714187440227,-500.0,0.00012679,2]
[323715590,1714187440236,-500.0,0.00012679,2]
[323715592,1714187440246,-500.0,0.00012679,2]
[323715594,1714187440255,-500.0,0.00012679,2]
[323715596,1714187440264,-500.0,0.00012679,2]
[323715598,1714187440273,-518.58417429,0.00012679,2]
[323715600,1714187440282,-500.0,0.00012679,2]
[323715602,1714187440293,-514.45167397,0.00012679,2]
[323715604,1714187440302,-500.0,0.00012679,2]
[323715606,1714187440312,-512.39743883,0.00012679,2]
[323715608,1714187440322,-500.0,0.00012679,2]
[323715610,1714187440331,-500.0,0.00012679,2]
[323715612,1714187440340,-585.1382029,0.00012679,2]
[323715614,1714187440348,-500.0,0.00012679,2]
[323715616,1714187440357,-500.0,0.00012679,2]
[323715618,1714187440367,-500.0,0.00012679,2]
[323715620,1714187440376,-500.0,0.00012679,2]
[323715622,1714187440386,-500.0,0.00012679,2]
[323715624,1714187440395,-503.13597571,0.00012679,2]
[323715626,1714187440404,-500.0,0.00012679,2]
[323715628,1714187440413,-500.0,0.00012679,2]
[323715630,1714187440422,-509.5473609,0.00012679,2]
[323715632,1714187440431,-500.0,0.00012679,2]
[323715634,1714187440440,-500.0,0.00012679,2]
[323715636,1714187440449,-505.25499975,0.00012679,2]
[323715638,1714187440457,-630.44758854,0.00012679,2]
[323715641,1714187440467,-500.0,0.00012679,2]
[323715644,1714187440476,-500.0,0.00012679,2]
[323715646,1714187440486,-500.0,0.00012679,2]
[323715648,1714187440495,-500.0,0.00012679,2]
[323715650,1714187440505,-500.0,0.00012679,2]
[323715652,1714187440515,-500.0,0.00012679,2]
[323715662,1714187440526,-506.63803482,0.00012679,2]
[323715663,1714187440738,-506.21268243,0.00012679,2]
[323715664,1714187440750,-504.75099605,0.00012679,2]
[323715665,1714187440761,-468.58586528,0.00012679,2]
[323715666,1714187440773,-500.0,0.00012679,2]
[323715667,1714187440783,-578.46850739,0.00012679,2]
[323715668,1714187440796,-500.0,0.00012679,2]
[323715669,1714187440806,-500.0,0.00012679,2]
[323715670,1714187440816,-500.0,0.00012679,2]
[323715671,1714187440827,-510.84791762,0.00012679,2]
[323715672,1714187440838,-500.0,0.00012679,2]
[323715673,1714187440852,-500.0,0.00012679,2]
[323715674,1714187440861,-500.0,0.00012679,2]
[323715675,1714187440870,-500.0,0.00012679,2]
[323715676,1714187440880,-500.0,0.00012679,2]
[323715677,1714187440889,-574.60481764,0.00012679,2]
[323715678,1714187440899,-475.7079685,0.00012679,2]
[323715679,1714187440908,-500.0,0.00012679,2]
[323715680,1714187440919,-500.0,0.00012679,2]
[323715681,1714187440928,-565.48188491,0.00012679,2]
[323715682,1714187440937,-509.29496964,0.00012679,2]
[323715683,1714187440946,-500.0,0.00012679,2]
[323715684,1714187440955,-523.35428267,0.00012679,2]
[323715685,1714187440964,-500.0,0.00012679,2]
[323715686,1714187440973,-500.0,0.00012679,2]
[323715687,1714187440983,-500.0,0.00012679,2]
[323715688,1714187440992,-500.0,0.00012679,2]
[323715689,1714187441002,-500.0,0.00012679,2]
[323715690,1714187441012,-500.0,0.00012679,2]
[323715691,1714187441022,-507.69077267,0.00012679,2]
[323715692,1714187441031,-507.53451307,0.00012679,2]
[323715693,1714187441041,-500.0,0.00012679,2]
[323715694,1714187441051,-517.83614837,0.00012679,2]
[323715695,1714187441061,-500.0,0.00012679,2]
[323715696,1714187441071,-506.27458698,0.00012679,2]
[323715697,1714187441082,-266.99487093,0.00012679,2]
[323715698,1714187441093,-529.87248915,0.00012679,2]
[323715699,1714187441106,-522.97173031,0.00012679,2]
[323715700,1714187441117,-500.0,0.00012679,2]
[323715701,1714187441127,-500.0,0.00012679,2]
[323715702,1714187441137,-500.0,0.00012679,2]
[323715703,1714187441148,-500.0,0.00012679,2]
[323715704,1714187441159,-500.0,0.00012679,2]
[323715705,1714187441169,-211.55754042,0.00012679,2]
[323715706,1714187441179,-531.48626653,0.00012679,2]
[323715707,1714187441191,-500.0,0.00012679,2]
[323715708,1714187441200,-507.0388344,0.00012679,2]
[323715709,1714187441211,-506.54992296,0.00012679,2]
[323715710,1714187441223,-520.11357719,0.00012679,2]
[323715711,1714187441233,-500.0,0.00012679,2]
[323715712,1714187441243,-512.4185471,0.00012679,2]
[323715713,1714187441255,-503.96881622,0.00012679,2]
[323715714,1714187441265,-500.0,0.00012679,2]
[323715715,1714187441275,-1158.92,0.00012679,2]
[323715716,1714187441286,-200.0,0.00012679,2]
[323715717,1714187441296,-500.0,0.00012679,2]
[323715718,1714187441307,-535.26384454,0.00012679,2]
[323715719,1714187441317,-500.0,0.00012679,2]
[323715720,1714187441329,-500.0,0.00012679,2]
[323715721,1714187441340,-232.74659701,0.00012679,2]
[323715722,1714187441351,-500.0,0.00012679,2]
[323715723,1714187441364,-500.0,0.00012679,2]
[323715724,1714187441375,-500.0,0.00012679,2]
[323715725,1714187441385,-500.0,0.00012679,2]
[323715726,1714187441394,-500.0,0.00012679,2]
[323715727,1714187441403,-500.0,0.00012679,2]
[323715728,1714187441414,-800.15,0.00012679,2]
[323715729,1714187441424,-500.0,0.00012679,2]
[323715730,1714187441433,-167.36230762,0.00012679,2]
[323715731,1714187441443,-509.53442835,0.00012679,2]
[323715732,1714187441454,-500.0,0.00012679,2]
[323715733,1714187441467,-500.0,0.00012679,2]
[323715734,1714187441480,-489.98567626,0.00012679,2]
[323715735,1714187441490,-502.93704643,0.00012679,2]
[323715736,1714187441501,-500.0,0.00012679,2]
[323715737,1714187441511,-500.0,0.00012679,2]
[323715738,1714187441522,-500.0,0.00012679,2]
[323715739,1714187441533,-429.99,0.00012679,2]
[323715740,1714187441543,-500.0,0.00012679,2]
[323715741,1714187441554,-524.36759768,0.00012679,2]
[323715742,1714187441564,-500.0,0.00012679,2]
[323715743,1714187441574,-500.0,0.00012679,2]
[323715744,1714187441583,-291.07070356,0.00012679,2]
[323715745,1714187441593,-508.4905807,0.00012679,2]
[323715746,1714187441604,-506.74151163,0.00012679,2]
[323715747,1714187441613,-628.82840493,0.00012679,2]
[323715748,1714187441627,-397.68919568,0.00012679,2]
[323715749,1714187441637,-500.0,0.00012679,2]
[323715750,1714187441649,-500.0,0.00012679,2]
[323715751,1714187441660,-500.0,0.00012679,2]
[323715752,1714187441672,-500.0,0.00012679,2]
[323715753,1714187441682,-500.0,0.00012679,2]
[323715754,1714187441693,-500.0,0.00012679,2]
[323715755,1714187441703,-500.0,0.00012679,2]
[323715756,1714187441713,-500.0,0.00012679,2]
[323715757,1714187441723,-500.0,0.00012679,2]
[323715758,1714187441735,-501.74585913,0.00012679,2]
[323715759,1714187441747,-500.0,0.00012679,2]
[323715760,1714187441759,-500.0,0.00012679,2]
[323715761,1714187441770,-500.0,0.00012679,2]
[323715762,1714187441781,-500.0,0.00012679,2]
[323715763,1714187441792,-504.85986783,0.00012679,2]
[323715764,1714187441803,-500.0,0.00012679,2]
[323715765,1714187441813,-508.33390808,0.00012679,2]
[323715766,1714187441824,-500.0,0.00012679,2]
[323715767,1714187441835,-500.0,0.00012679,2]
[323715768,1714187441849,-508.37985673,0.00012679,2]
[323715769,1714187441860,-500.0,0.00012679,2]
[323715770,1714187441870,-500.0,0.00012679,2]
[323715771,1714187441881,-500.0,0.00012679,2]
[323715772,1714187441892,-500.0,0.00012679,2]
[323715773,1714187441902,-504.57358825,0.00012679,2]
[323715774,1714187441914,-500.0,0.00012679,2]
[323715775,1714187441928,-260.18128443,0.00012679,2]
[323715776,1714187441939,-500.0,0.00012679,2]
[323715777,1714187441950,-500.0,0.00012679,2]
[323715778,1714187441960,-500.0,0.00012679,2]
[323715779,1714187441970,-510.33897358,0.00012679,2]
[323715780,1714187441981,-500.0,0.00012679,2]
[323715781,1714187441991,-500.0,0.00012679,2]
[323715782,1714187442003,-500.0,0.00012679,2]
[323715783,1714187442014,-509.5948409,0.00012679,2]
[323715784,1714187442025,-500.0,0.00012679,2]
[323715785,1714187442038,-199.58,0.00012679,2]
[323715786,1714187442047,-511.31841762,0.00012679,2]
[323715787,1714187442056,-506.5370583,0.00012679,2]
[323715788,1714187442066,-510.64233838,0.00012679,2]
[323715789,1714187442076,-500.0,0.00012679,2]
[323715790,1714187442087,-508.70074539,0.00012679,2]
[323715791,1714187442099,-500.0,0.00012679,2]
[323715792,1714187442110,-834.8,0.00012679,2]
[323715793,1714187442123,-500.0,0.00012679,2]
[323715794,1714187442134,-513.27737858,0.00012679,2]
[323715795,1714187442146,-500.0,0.00012679,2]
[323715796,1714187442157,-500.0,0.00012679,2]
[323715797,1714187442168,-500.0,0.00012679,2]
[323715798,1714187442178,-500.0,0.00012679,2]
[323715799,1714187442189,-500.0,0.00012679,2]
[323715800,1714187442199,-519.12031517,0.00012679,2]
[323715801,1714187442209,-511.96216399,0.00012679,2]
[323715802,1714187442219,-511.22098244,0.00012679,2]
[323715803,1714187442229,-500.0,0.00012679,2]
[323715804,1714187442240,-500.0,0.00012679,2]
[323715805,1714187442252,-500.0,0.00012679,2]
[323715806,1714187442262,-150.0,0.00012679,2]
[323715807,1714187442272,-198.01113405,0.00012679,2]
[323715808,1714187442285,-415.19017269,0.00012679,2]
[323715809,1714187442296,-500.0,0.00012679,2]
[323715810,1714187442307,-520.08092501,0.00012679,2]
[323715811,1714187442318,-500.0,0.00012679,2]
[323715812,1714187442329,-500.0,0.00012679,2]
[323715813,1714187442339,-500.0,0.00012679,2]
[323715814,1714187442348,-500.0,0.00012679,2]
[323715815,1714187442357,-500.0,0.00012679,2]
[323715816,1714187442368,-500.0,0.00012679,2]
[323715817,1714187442376,-500.0,0.00012679,2]
[323715818,1714187442386,-500.0,0.00012679,2]
[323715819,1714187442395,-512.03697231,0.00012679,2]
[323715820,1714187442404,-500.0,0.00012679,2]
[323715821,1714187442413,-500.0,0.00012679,2]
[323715822,1714187442422,-500.0,0.00012679,2]
[323715823,1714187442432,-500.0,0.00012679,2]
[323715824,1714187442441,-505.87765406,0.00012679,2]
[323715825,1714187442450,-508.87141664,0.00012679,2]
[323715826,1714187442459,-504.26089183,0.00012679,2]
[323715827,1714187442468,-500.0,0.00012679,2]
[323715828,1714187442477,-507.36648678,0.00012679,2]
[323715829,1714187442486,-500.0,0.00012679,2]
[323715830,1714187442495,-514.55228792,0.00012679,2]
[323715831,1714187442505,-500.0,0.00012679,2]
[323715832,1714187442514,-507.0643514,0.00012679,2]
[323715833,1714187442523,-577.08,0.00012679,2]
[323715834,1714187442532,-500.0,0.00012679,2]
[323715835,1714187442541,-508.37239663,0.00012679,2]
[323715836,1714187442550,-500.0,0.00012679,2]
[323715837,1714187442559,-500.0,0.00012679,2]
[323715838,1714187442568,-500.0,0.00012679,2]
[323715839,1714187442578,-500.0,0.00012679,2]
[323715840,1714187442588,-500.0,0.00012679,2]
[323715841,1714187442597,-500.0,0.00012679,2]
[323715842,1714187442606,-286.50254962,0.00012679,2]
[323715843,1714187442615,-500.0,0.00012679,2]
[323715844,1714187442624,-500.0,0.00012679,2]
[323715845,1714187442634,-500.0,0.00012679,2]
[323715846,1714187442643,-500.0,0.00012679,2]
[323715847,1714187442652,-500.0,0.00012679,2]
[323715848,1714187442661,-500.0,0.00012679,2]
[323715849,1714187442670,-500.0,0.00012679,2]
[323715850,1714187442679,-500.0,0.00012679,2]
[323715852,1714187442688,-500.0,0.00012679,2]
[323715854,1714187442697,-509.60301867,0.00012679,2]
[323715856,1714187442706,-500.0,0.00012679,2]
[323715857,1714187442715,-510.89149688,0.00012679,2]
[323715858,1714187442724,-500.0,0.00012679,2]
[323715860,1714187442733,-564.36898362,0.00012679,2]
[323715862,1714187442742,-500.0,0.00012679,2]
[323715864,1714187442752,-500.0,0.00012679,2]
[323715866,1714187442761,-595.88966751,0.00012679,2]
[323715868,1714187442770,-420.38141215,0.00012679,2]
[323715869,1714187442779,-500.0,0.00012679,2]
[323715872,1714187442787,-500.0,0.00012679,2]
[323715875,1714187442797,-547.99999995,0.00012679,2]
[323715878,1714187442806,-500.0,0.00012679,2]
[323715880,1714187442814,-500.0,0.00012679,2]
[323715883,1714187442824,-508.74469672,0.00012679,2]
[323715886,1714187442835,-500.0,0.00012679,2]
[323715889,1714187442844,-506.48280556,0.00012679,2]
[323715893,1714187442854,-500.0,0.00012679,2]
[323715897,1714187442863,-483.7284203,0.00012679,2]
[323715901,1714187442872,-500.0,0.00012679,2]
[323715905,1714187442881,-500.0,0.00012679,2]
[323715908,1714187442890,-938.45,0.00012679,2]
[323715911,1714187442900,-597.26805269,0.00012679,2]
[323715914,1714187442909,-2258.69,0.00012679,2]
[323715917,1714187442918,-500.0,0.00012679,2]
[323715920,1714187442927,-500.0,0.00012679,2]
[323715922,1714187442936,-521.90607822,0.00012679,2]
[323715924,1714187442945,-609.8175836,0.00012679,2]
[323715926,1714187442954,-500.0,0.00012679,2]
[323715928,1714187442963,-500.0,0.00012679,2]
[323715930,1714187442972,-500.0,0.00012679,2]
[323715932,1714187442982,-500.0,0.00012679,2]
[323715933,1714187442991,-232.05072203,0.00012679,2]
[323715934,1714187443002,-500.0,0.00012679,2]
[323715935,1714187443012,-507.75334425,0.00012679,2]
[323715936,1714187443021,-500.0,0.00012679,2]
[323715937,1714187443030,-500.0,0.00012679,2]
[323715938,1714187443039,-500.0,0.00012679,2]
[323715939,1714187443049,-505.57475486,0.00012679,2]
[323715940,1714187443059,-505.99789189,0.00012679,2]
[323715942,1714187443068,-606.18497252,0.00012679,2]
[323715943,1714187443077,-500.0,0.00012679,2]
[323715944,1714187443086,-500.0,0.00012679,2]
[323715945,1714187443095,-500.0,0.00012679,2]
[323715946,1714187443104,-508.33428694,0.00012679,2]
[323715947,1714187443113,-500.0,0.00012679,2]
[323715948,1714187443122,-505.10037685,0.00012679,2]
[323715949,1714187443131,-601.64503826,0.00012679,2]
[323715950,1714187443140,-500.0,0.00012679,2]
[323715951,1714187443149,-500.0,0.00012679,2]
[323715952,1714187443159,-500.0,0.00012679,2]
[323715953,1714187443168,-510.55347329,0.00012679,2]
[323715954,1714187443178,-500.0,0.00012679,2]
[323715955,1714187443187,-500.0,0.00012679,2]
[323715956,1714187443196,-514.97186569,0.00012679,2]
[323715957,1714187443205,-500.0,0.00012679,2]
[323715958,1714187443214,-500.0,0.00012679,2]
[323715959,1714187443223,-509.07634772,0.00012679,2]
[323715960,1714187443233,-500.0,0.00012679,2]
[323715961,1714187443242,-500.0,0.00012679,2]
[323715962,1714187443252,-500.0,0.00012679,2]
[323715963,1714187443261,-500.0,0.00012679,2]
[323715964,1714187443271,-500.0,0.00012679,2]
[323715965,1714187443279,-504.34345622,0.00012679,2]
[323715966,1714187443289,-625.9961915,0.00012679,2]
[323715967,1714187443299,-500.0,0.00012679,2]
[323715968,1714187443308,-606.87815883,0.00012679,2]
[323715969,1714187443317,-500.0,0.00012679,2]
[323715970,1714187443327,-482.85734184,0.00012679,2]
[323715971,1714187443337,-500.0,0.00012679,2]
[323715972,1714187443346,-31.22053487,0.00012679,2]
[323715976,1714187443595,-468.77946513,0.00012679,2]
[323715977,1714187443604,-177.63975844,0.00012679,2]
[323715978,1714187443613,-401.47454982,0.00012679,2]
[323715979,1714187443622,-500.0,0.00012679,2]
[323715980,1714187443631,-343.62256333,0.00012679,2]
[323715981,1714187443643,-156.37743667,0.00012679,2]
[323715982,1714187443652,-500.0,0.00012679,2]
[323715983,1714187443661,-500.0,0.00012679,2]
[323715984,1714187443671,-514.04,0.00012679,2]
[323715985,1714187443680,-500.0,0.00012679,2]
[323715986,1714187443689,-500.0,0.00012679,2]
[323715987,1714187443699,-178.36410426,0.00012679,2]
[323715988,1714187443722,-321.63589574,0.00012679,2]
[323715989,1714187443731,-500.0,0.00012679,2]
[323715990,1714187443741,-500.0,0.00012679,2]
[323715991,1714187443752,-500.0,0.00012679,2]
[323715992,1714187443761,-500.0,0.00012679,2]
[323715993,1714187443770,-500.0,0.00012679,2]
[323715994,1714187443779,-500.0,0.00012679,2]
[323715995,1714187443788,-500.0,0.00012679,2]
[323715996,1714187443797,-500.0,0.00012679,2]
[323715997,1714187443806,-777.94,0.00012679,2]
[323715998,1714187443816,-343.64928112,0.00012679,2]
[323715999,1714187443827,-500.0,0.00012679,2]
[323716000,1714187443841,-208.2147159,0.00012679,2]
[323716001,1714187443850,-500.0,0.00012679,2]
[323716002,1714187443859,-364.61806727,0.00012679,2]
[323716003,1714187443868,-500.47825726,0.00012679,2]
[323716004,1714187443878,-500.0,0.00012679,2]
[323716005,1714187443887,-500.0,0.00012679,2]
[323716006,1714187443897,-568.95885534,0.00012679,2]
[323716007,1714187443906,-500.0,0.00012679,2]
[323716008,1714187443918,-500.0,0.00012679,2]
[323716009,1714187443928,-500.0,0.00012679,2]
[323716010,1714187443938,-500.0,0.00012679,2]
[323716011,1714187443947,-184.7118704,0.00012679,2]
[323716012,1714187443956,-500.0,0.00012679,2]
[323716013,1714187443965,-500.0,0.00012679,2]
[323716014,1714187443974,-500.0,0.00012679,2]
[323716015,1714187443984,-500.0,0.00012679,2]
[323716016,1714187443996,-504.9258191,0.00012679,2]
[323716017,1714187444006,-500.0,0.00012679,2]
[323716018,1714187444015,-851.93,0.00012679,2]
[323716019,1714187444025,-500.93505226,0.00012679,2]
[323716020,1714187444035,-370.2207727,0.00012679,2]
[323716021,1714187444045,-500.0,0.00012679,2]
[323716022,1714187444054,-508.75034572,0.00012679,2]
[323716023,1714187444064,-506.017172,0.00012679,2]
[323716024,1714187444074,-768.15,0.00012679,2]
[323716025,1714187444083,-500.0,0.00012679,2]
[323716026,1714187444092,-500.0,0.00012679,2]
[323716027,1714187444101,-230.43409091,0.00012679,2]
[323716028,1714187444111,-500.0,0.00012679,2]
[323716029,1714187444121,-500.0,0.00012679,2]
[323716030,1714187444130,-500.0,0.00012679,2]
[323716031,1714187444139,-519.59266655,0.00012679,2]
[323716032,1714187444149,-500.0,0.00012679,2]
[323716033,1714187444158,-612.66838641,0.00012679,2]
[323716034,1714187444168,-507.20953716,0.00012679,2]
[323716035,1714187444177,-500.0,0.00012679,2]
[323716036,1714187444187,-500.0,0.00012679,2]
[323716037,1714187444197,-504.31103177,0.00012679,2]
[323716038,1714187444206,-500.0,0.00012679,2]
[323716039,1714187444215,-500.0,0.00012679,2]
[323716040,1714187444226,-500.0,0.00012679,2]
[323716041,1714187444236,-500.0,0.00012679,2]
[323716042,1714187444247,-500.0,0.00012679,2]
[323716043,1714187444258,-507.07847723,0.00012679,2]
[323716044,1714187444268,-500.0,0.00012679,2]
[323716045,1714187444277,-500.0,0.00012679,2]
[323716046,1714187444287,-500.0,0.00012679,2]
[323716047,1714187444296,-500.0,0.00012679,2]
[323716048,1714187444306,-306.85172461,0.00012679,2]
[323716049,1714187444315,-500.0,0.00012679,2]
[323716050,1714187444324,-380.71798055,0.00012679,2]
[323716051,1714187444337,-119.28201945,0.00012679,2]
[323716052,1714187444347,-208.49544824,0.00012679,2]
[323716056,1714187445894,-500.0,0.00012678,2]
[323716057,1714187445904,-500.0,0.00012678,2]
[323716058,1714187445913,-500.0,0.00012678,2]
[323716059,1714187445924,-7.76330781,0.00012679,2]
[323716060,1714187445947,-151.1857142,0.00012679,2]
[323716061,1714187445956,-505.34229403,0.00012679,2]
[323716062,1714187445966,-500.0,0.00012679,2]
[323716063,1714187445975,-500.0,0.00012679,2]
[323716064,1714187445986,-500.0,0.00012679,2]
[323716065,1714187445995,-506.2489308,0.00012679,2]
[323716066,1714187446006,-500.0,0.00012679,2]
[323716067,1714187446014,-500.0,0.00012679,2]
[323716068,1714187446024,-500.0,0.00012679,2]
[323716069,1714187446033,-274.0298144,0.00012679,2]
[323716070,1714187446042,-508.58156083,0.00012679,2]
[323716071,1714187446051,-500.0,0.00012679,2]
[323716072,1714187446061,-500.0,0.00012679,2]
[323716073,1714187446070,-506.15389114,0.00012679,2]
[323716074,1714187446080,-500.0,0.00012679,2]
[323716075,1714187446089,-508.30274319,0.00012679,2]
[323716076,1714187446099,-500.0,0.00012679,2]
[323716077,1714187446107,-500.0,0.00012679,2]
[323716078,1714187446116,-500.16515891,0.00012679,2]
[323716079,1714187446126,-540.48489881,0.00012679,2]
[323716080,1714187446135,-500.0,0.00012679,2]
[323716081,1714187446145,-500.0,0.00012679,2]
[323716082,1714187446154,-500.0,0.00012679,2]
[323716083,1714187446163,-500.0,0.00012679,2]
[323716084,1714187446172,-580.76,0.00012679,2]
[323716085,1714187446181,-500.0,0.00012679,2]